bitfinex/quotes_BTCUSD_20251117
["timestamp","ask_amount","ask_price","bid_price","bid_amount"]
[1763396797322,0.01962103,93475.0,93471.0,0.04341874]
[1763396797532,0.01962103,93475.0,93473.0,0.04341874]
[1763396797759,0.01962103,93475.0,93474.0,0.04746339]
[1763396798557,0.01962103,93475.0,93474.0,0.19536339]
[1763396798970,0.01962103,93475.0,93474.0,0.002]
[1763396799214,0.02673196,93521.0,93474.0,0.002]
[1763396799215,0.00971392,93508.0,93474.0,0.002]
[1763396799589,0.02673196,93501.0,93474.0,0.002]
[1763396799770,0.02673196,93501.0,93475.0,0.06744737]
[1763396800184,0.02673196,93501.0,93476.0,0.00403715]
[1763396800383,0.00013237,93508.0,93480.0,0.67247369]
[1763396800517,0.00013237,93508.0,93474.0,0.002]
[1763396800518,0.00013237,93508.0,93491.0,0.04341874]
[1763396800710,0.00013237,93508.0,93498.0,0.67247369]
[1763396801024,0.00013237,93508.0,93500.0,0.05341873]
[1763396801250,0.00013237,93508.0,93502.0,0.04341874]
[1763396801455,0.00013237,93508.0,93481.0,0.10416178]
[1763396801456,0.00013237,93508.0,93490.0,0.67247369]
[1763396801658,0.00013237,93508.0,93491.0,0.04341874]
[1763396801856,0.00013237,93508.0,93499.0,0.04341874]
[1763396802056,0.00013237,93508.0,93501.0,0.04341874]
[1763396802216,0.00013237,93508.0,93503.0,0.04341874]
[1763396802428,0.00013237,93508.0,93505.0,0.04341874]
[1763396802636,0.00013237,93508.0,93491.0,0.04341874]
[1763396803122,0.00013237,93508.0,93480.0,0.67247369]
[1763396803123,0.00013237,93508.0,93490.0,0.67247369]
[1763396803326,0.00013237,93508.0,93492.0,0.00403039]
[1763396803587,0.00013237,93508.0,93493.0,0.06765041]
[1763396804048,0.00013237,93508.0,93480.0,0.67247369]
[1763396804519,0.00013237,93508.0,93501.0,0.001]
[1763396804736,0.00013237,93508.0,93481.0,0.00403377]
[1763396804939,0.00013237,93508.0,93480.0,0.67247369]
[1763396805432,0.00013237,93508.0,93490.0,0.67247369]
[1763396805644,0.00013237,93508.0,93491.0,0.07127806]
[1763396805809,0.00013237,93508.0,93491.0,0.07085806]
[1763396806597,0.00013237,93508.0,93480.0,0.67247369]
[1763396807214,0.00013237,93508.0,93481.0,0.00403377]
[1763396807455,0.00013237,93508.0,93490.0,0.67247369]
[1763396807662,0.00013237,93508.0,93491.0,0.00403069]
[1763396808312,0.00013237,93508.0,93460.0,0.67247369]
[1763396808523,0.00013237,93508.0,93461.0,0.07853737]
[1763396809258,0.00971392,93503.0,93450.0,0.68184669]
[1763396809436,0.02673739,93502.0,93450.0,0.68184669]
[1763396809637,0.00971392,93495.0,93450.0,0.009373]
[1763396809896,0.04341874,93493.0,93450.0,0.009373]
[1763396810054,0.04341874,93491.0,93451.0,0.00404697]
[1763396810270,0.04341874,93489.0,93451.0,0.00404697]
[1763396810472,0.01704599,93488.0,93449.0,14.01666345]
[1763396811102,0.04341874,93506.0,93450.0,0.67247369]
[1763396811306,0.001,93491.0,93451.0,0.10366938]
[1763396811648,0.04322543,93505.0,93451.0,0.10366938]
[1763396811649,0.01962143,93490.0,93451.0,0.10366938]
[1763396811879,0.01962143,93489.0,93451.0,0.10366938]
[1763396812083,0.02062143,93488.0,93451.0,0.10366938]
[1763396812231,0.01962143,93487.0,93452.0,0.10366938]
[1763396812437,0.01962143,93486.0,93452.0,0.10366938]
[1763396812644,0.01962143,93485.0,93452.0,0.10366938]
[1763396812849,0.001,93491.0,93470.0,0.68247368]
[1763396812850,0.01962143,93484.0,93470.0,0.68247368]
[1763396813052,0.01962143,93483.0,93475.0,0.04341874]
[1763396813409,0.001,93491.0,93471.0,0.07866355]
[1763396813410,0.01962143,93482.0,93471.0,0.07866355]
[1763396813631,0.01962143,93481.0,93461.0,0.04341874]
[1763396813830,0.00013237,93508.0,93461.0,0.04341874]
[1763396813831,0.01962143,93480.0,93470.0,0.67247369]
[1763396813955,0.01962143,93479.0,93470.0,0.67247369]
[1763396814155,0.01962143,93478.0,93470.0,0.67247369]
[1763396814412,0.01962143,93477.0,93470.0,0.67247369]
[1763396814615,0.01962143,93476.0,93470.0,0.73972106]
[1763396814825,0.01962143,93475.0,93470.0,0.73972106]
[1763396815041,0.01962143,93474.0,93470.0,0.73972106]
[1763396815260,0.01962143,93473.0,93470.0,0.06724737]
[1763396815471,0.01962143,93473.0,93470.0,0.06824737]
[1763396815666,0.01962143,93473.0,93465.0,0.04341874]
[1763396817098,0.0001324,93474.0,93470.0,0.001]
[1763396817299,0.0001324,93474.0,93465.0,0.04341874]
[1763396817300,0.01969072,93473.0,93465.0,0.04341874]
[1763396817601,0.01969072,93473.0,93461.0,0.04341874]
[1763396817819,0.01969072,93473.0,93460.0,0.00999999]
[1763396817969,0.01969072,93473.0,93463.0,0.67247369]
[1763396818376,0.01969072,93473.0,93470.0,0.001]
[1763396818641,0.01969072,93473.0,93463.0,0.67247369]
[1763396819006,0.00999999,93520.0,93463.0,0.67247369]
[1763396819007,0.07546742,93525.0,93480.0,0.00999999]
[1763396819194,0.0001324,93525.0,93515.0,0.67247369]
[1763396819624,0.0001324,93525.0,93500.0,0.67247369]
[1763396820452,0.00971392,93519.0,93490.0,0.67247369]
[1763396820652,0.00971392,93519.0,93491.0,0.06724737]
[1763396820856,0.00971392,93509.0,93480.0,0.67247369]
[1763396821275,0.00971392,93509.0,93470.0,0.00999999]
[1763396821276,0.00971392,93500.0,93470.0,0.001]
[1763396821483,0.0001324,93525.0,93450.0,0.67247369]
[1763396821771,0.00971392,93481.0,93450.0,0.67247369]
[1763396821974,0.00971392,93481.0,93451.0,0.10366938]
[1763396822522,0.07546742,93503.0,93440.0,0.0001327]
[1763396822669,0.00971392,93463.0,93440.0,0.0001327]
[1763396822990,0.00971392,93480.0,93450.0,0.67247369]
[1763396823131,0.00971392,93480.0,93449.0,14.0167957]
[1763396823336,0.01101503,93488.0,93450.0,0.10366938]
[1763396823610,0.00971392,93469.0,93450.0,0.10366938]
[1763396823832,0.00971392,93469.0,93450.0,0.77614307]
[1763396824022,0.00971392,93473.0,93450.0,0.77614307]
[1763396824444,0.00971392,93477.0,93450.0,0.77614307]
[1763396824657,0.00971392,93477.0,93451.0,0.10366938]
[1763396825057,0.00971392,93480.0,93460.0,0.47247369]
[1763396825264,0.00971392,93483.0,93460.0,0.67247369]
[1763396825477,0.09432415,93522.0,93460.0,0.67247369]
[1763396825478,0.07546742,93512.0,93470.0,0.67247369]
[1763396825676,0.00971392,93520.0,93500.0,0.67247369]
[1763396825879,0.01522885,93530.0,93510.0,0.67247369]
[1763396826080,0.01522885,93530.0,93480.0,0.68247368]
[1763396826081,0.02692367,93550.0,93520.0,0.67247369]
[1763396826291,0.0002,93550.0,93521.0,0.06724737]
[1763396826491,0.00971392,93543.0,93521.0,0.06724737]
[1763396826719,0.00971392,93543.0,93521.0,0.12497737]
[1763396827038,0.00971392,93543.0,93530.0,0.67247369]
[1763396827039,0.00013242,93543.0,93530.0,0.67247369]
[1763396827155,0.00013242,93543.0,93542.0,0.02842]
[1763396828036,0.00013242,93543.0,93535.0,0.02842]
[1763396828239,0.00971392,93556.0,93536.0,0.02138214]
[1763396828439,0.01015499,93556.0,93536.0,0.02138214]
[1763396828775,0.02593585,93556.0,93536.0,0.02138214]
[1763396828964,0.00971392,93546.0,93535.0,0.02842]
[1763396829171,0.00044107,93556.0,93537.0,0.02138191]
[1763396829378,0.01622038,93556.0,93538.0,0.01075319]
[1763396829653,0.00044107,93556.0,93540.0,0.67247369]
[1763396829947,0.00044107,93556.0,93541.0,0.02138099]
[1763396830153,0.00971392,93555.0,93535.0,0.02842]
[1763396830360,0.00044107,93556.0,93510.0,0.67247369]
[1763396830588,0.00971392,93544.0,93520.0,0.005684]
[1763396830787,0.00971392,93544.0,93520.0,0.73588769]
[1763396830996,0.00971392,93547.0,93521.0,0.01497396]
[1763396831223,0.01964011,93546.0,93530.0,0.67247369]
[1763396831442,0.01964011,93545.0,93531.0,0.08863065]
[1763396831657,0.01964011,93544.0,93522.0,0.05773]
[1763396831861,0.01614759,93556.0,93523.0,0.05773]
[1763396831862,0.01964011,93543.0,93523.0,0.05773]
[1763396832130,0.01964011,93542.0,93530.0,0.67247369]
[1763396832338,0.01964011,93541.0,93531.0,0.02138328]
[1763396832538,0.01964011,93540.0,93521.0,0.07065777]
[1763396832758,0.01964011,93539.0,93530.0,0.67247369]
[1763396832961,0.01964011,93538.0,93531.0,0.00529739]
[1763396833105,0.01964011,93537.0,93532.0,0.06777711]
[1763396833312,0.01964011,93536.0,93533.0,0.00529728]
[1763396833538,0.01614759,93556.0,93533.0,0.00529728]
[1763396833812,0.0196259,93555.0,93533.0,0.00529728]
[1763396834019,0.0196259,93554.0,93533.0,0.00529728]
[1763396834323,0.01962247,93553.0,93540.0,0.67247369]
[1763396834530,0.01962247,93552.0,93541.0,0.00529065]
[1763396834731,0.01962247,93551.0,93534.0,0.07455481]
[1763396834901,0.01962247,93550.0,93534.0,0.07455481]
[1763396835102,0.01962247,93549.0,93535.0,0.07470285]
[1763396835323,0.01962247,93548.0,93535.0,0.07470285]
[1763396835569,0.01962247,93547.0,93530.0,0.05773]
[1763396835879,0.01962247,93546.0,93521.0,0.07065777]
[1763396836084,0.01614759,93556.0,93518.0,0.05773]
[1763396836085,0.01962247,93545.0,93518.0,0.05773]
[1763396836230,0.00971392,93540.0,93520.0,0.011457]
[1763396836434,0.01962247,93539.0,93520.0,0.011457]
[1763396836635,0.01962247,93538.0,93520.0,0.011457]
[1763396836844,0.00971392,93529.0,93492.0,0.02842]
[1763396837046,0.04341874,93518.0,93471.0,0.02842]
[1763396837205,0.04341874,93508.0,93479.0,0.06421]
[1763396837404,0.00971392,93499.0,93471.0,0.02842]
[1763396837657,0.01962247,93498.0,93480.0,0.0053214]
[1763396837992,0.01962247,93497.0,93480.0,0.67247369]
[1763396838196,0.01962247,93496.0,93481.0,0.14604441]
[1763396838399,0.01558,93517.0,93482.0,0.00532387]
[1763396838400,0.01962247,93495.0,93482.0,0.00532387]
[1763396838607,0.01962247,93494.0,93482.0,0.06953387]
[1763396838786,0.01962247,93493.0,93482.0,0.06953387]
[1763396839003,0.01962247,93492.0,93483.0,0.077056]
[1763396839221,0.01962247,93491.0,93484.0,0.00532437]
[1763396839344,0.04341874,93515.0,93484.0,0.06953437]
[1763396839551,0.019593,93514.0,93490.0,0.67247369]
[1763396839746,0.019593,93514.0,93484.0,0.06953437]
[1763396839747,0.019593,93513.0,93491.0,0.0053164]
[1763396839945,0.019593,93512.0,93480.0,0.62614115]
[1763396840145,0.019593,93511.0,93490.0,0.67247369]
[1763396840374,0.019593,93510.0,93490.0,0.67247369]
[1763396840758,0.019593,93510.0,93471.0,0.14132]
[1763396840991,0.05313266,93509.0,93471.0,0.02842]
[1763396841248,0.04341874,93505.0,93471.0,0.02842]
[1763396841444,0.019593,93504.0,93480.0,0.67247369]
[1763396841674,0.019593,93503.0,93490.0,0.67247369]
[1763396841886,0.019593,93502.0,93493.0,0.67247369]
[1763396842107,0.019593,93501.0,93493.0,0.67247369]
[1763396842333,0.06056,93530.0,93493.0,0.67247369]
[1763396842334,0.0214,93529.0,93494.0,0.09698]
[1763396842545,0.01961424,93510.0,93494.0,0.09698]
[1763396842758,0.01961424,93509.0,93495.0,0.14788011]
[1763396842966,0.0214,93529.0,93495.0,0.14788011]
[1763396842967,0.01961424,93508.0,93495.0,0.14788011]
[1763396843187,0.01961424,93507.0,93496.0,0.06421]
[1763396843404,0.00999999,93570.0,93497.0,0.67247369]
[1763396843405,0.01961424,93506.0,93497.0,0.67247369]
[1763396843616,0.09432415,93576.0,93509.0,0.1129]
[1763396843617,0.08196,93566.0,93509.0,0.1129]
[1763396843864,0.06056,93557.0,93510.0,0.15618]
[1763396844073,0.06056,93546.0,93510.0,0.15618]
[1763396844279,0.06056,93546.0,93510.0,0.22039]
[1763396844702,0.01896,93533.0,93510.0,0.10749]
[1763396844917,0.06056,93546.0,93510.0,0.22039]
[1763396845134,0.06056,93546.0,93510.0,0.242429]
[1763396845347,0.06056,93546.0,93510.0,0.244429]
[1763396845555,0.06056,93546.0,93510.0,0.242429]
[1763396845961,0.06056,93546.0,93510.0,0.129529]
[1763396845962,0.00885,93533.0,93510.0,0.129529]
[1763396846177,0.06056,93565.0,93510.0,0.22039]
[1763396846380,0.02417583,93564.0,93510.0,0.22039]
[1763396846582,0.06056,93550.0,93510.0,0.22039]
[1763396846992,0.06056,93550.0,93510.0,0.22239]
[1763396847196,0.06056,93550.0,93510.0,0.22039]
[1763396847197,0.03152,93533.0,93510.0,0.22039]
[1763396847605,0.03152,93533.0,93510.0,0.10949]
[1763396847799,0.03152,93533.0,93510.0,0.10749]
[1763396848005,0.03152,93533.0,93510.0,0.129529]
[1763396848224,0.1013122,93511.0,93510.0,0.002]
[1763396848444,0.0407522,93511.0,93493.0,0.03277]
[1763396848667,0.0001322,93511.0,93483.0,0.03277]
[1763396848871,0.0001322,93511.0,93510.0,0.002]
[1763396849932,0.0001322,93511.0,93502.0,0.03277]
[1763396850757,0.0001322,93511.0,93510.0,0.04066]
[1763396850960,0.0001322,93511.0,93503.0,0.06069]
[1763396851165,0.0001322,93511.0,93504.0,0.10366938]
[1763396851377,0.0001322,93511.0,93510.0,0.001]
[1763396851779,0.0001322,93511.0,93502.0,0.03277]
[1763396851981,0.0001322,93511.0,93510.0,0.001]
[1763396852188,0.0001322,93511.0,93490.0,0.99458315]
[1763396852189,0.0001322,93511.0,93490.0,0.98458316]
[1763396852411,0.0001322,93511.0,93491.0,0.10366938]
[1763396853198,0.0001322,93511.0,93500.0,0.98458316]
[1763396853772,0.0001322,93511.0,93510.0,0.04066]
[1763396854387,0.0001322,93511.0,93510.0,0.10135]
[1763396855234,0.0001322,93511.0,93510.0,0.14476874]
[1763396855450,0.0001322,93511.0,93510.0,0.15924561]
[1763396855615,0.0214,93566.0,93530.0,0.00999999]
[1763396855868,0.0197136,93565.0,93550.0,0.98458316]
[1763396856244,0.02184134,93566.0,93530.0,0.00999999]
[1763396856245,0.0197136,93564.0,93544.0,0.01568]
[1763396856526,0.0197136,93563.0,93544.0,0.01568]
[1763396856758,0.0197136,93562.0,93545.0,0.06411609]
[1763396856967,0.0197136,93561.0,93545.0,0.06411609]
[1763396857177,0.0197136,93560.0,93545.0,0.06411609]
[1763396857430,0.0197136,93559.0,93544.0,0.01568]
[1763396857676,0.0197136,93558.0,93544.0,0.01568]
[1763396857880,0.0197136,93557.0,93538.0,0.01568]
[1763396858087,0.02953,93545.0,93531.0,0.01568]
[1763396858259,0.06002,93564.0,93531.0,0.01568]
[1763396858260,0.0197136,93544.0,93531.0,0.01568]
[1763396858480,0.0197136,93543.0,93525.0,0.01568]
[1763396858760,0.0197136,93542.0,93530.0,0.98458316]
[1763396859035,0.06002,93563.0,93531.0,0.10002632]
[1763396859036,0.0197136,93541.0,93531.0,0.10002632]
[1763396859246,0.02953,93554.0,93525.0,0.01568]
[1763396859247,0.0197136,93540.0,93525.0,0.01568]
[1763396859448,0.0197136,93539.0,93525.0,0.01568]
[1763396859588,0.06002,93553.0,93525.0,0.01568]
[1763396859589,0.0197136,93538.0,93525.0,0.01568]
[1763396859785,0.0197136,93537.0,93526.0,0.10002632]
[1763396859987,0.0197136,93536.0,93526.0,0.10002632]
[1763396860351,0.07,93527.0,93500.0,6e-05]
[1763396860554,0.0197136,93526.0,93500.0,6e-05]
[1763396860758,0.0197136,93525.0,93500.0,6e-05]
[1763396860960,0.0197136,93524.0,93500.0,0.0001922]
[1763396861161,0.0197136,93523.0,93516.0,0.1129]
[1763396861364,0.0214,93566.0,93518.0,0.15631874]
[1763396861365,0.0197136,93522.0,93518.0,0.15631874]
[1763396861571,0.0214,93566.0,93525.0,0.15631874]
[1763396861783,0.0214,93566.0,93520.0,0.00999999]
[1763396861784,0.08092825,93558.0,93530.0,0.98458316]
[1763396861982,0.08092825,93558.0,93521.0,0.04066]
[1763396861983,0.01968564,93557.0,93531.0,0.09845832]
[1763396862203,0.01968564,93556.0,93521.0,0.10135]
[1763396862404,0.01968564,93555.0,93526.0,0.10416178]
[1763396862552,0.01968564,93554.0,93530.0,0.98458316]
[1763396862756,0.01968564,93553.0,93530.0,0.98458316]
[1763396862969,0.01968564,93552.0,93526.0,0.06069]
[1763396863330,0.01968564,93551.0,93527.0,0.10366938]
[1763396863610,0.01968564,93550.0,93530.0,0.98458316]
[1763396863821,0.01968564,93549.0,93530.0,0.98558316]
[1763396863947,0.01968564,93548.0,93531.0,0.06069]
[1763396864183,0.01968564,93547.0,93531.0,0.06069]
[1763396864394,0.01968564,93546.0,93532.0,0.10366938]
[1763396864596,0.01968564,93545.0,93520.0,0.00999999]
[1763396864801,0.07,93521.0,93506.0,0.01568]
[1763396865023,0.01968564,93520.0,93506.0,0.01568]
[1763396865228,0.02953,93507.0,93500.0,6e-05]
[1763396865623,0.07,93521.0,93500.0,6e-05]
[1763396865624,0.01968564,93506.0,93500.0,6e-05]
[1763396865822,0.01968564,93505.0,93501.0,0.06069]
[1763396865977,0.01968564,93504.0,93502.0,0.006075]
[1763396866309,0.06002,93530.0,93502.0,0.006075]
[1763396866310,0.01968564,93503.0,93502.0,0.006075]
[1763396866596,0.01968564,93503.0,93502.0,0.066765]
[1763396866827,0.01968564,93503.0,93502.0,0.107425]
[1763396867212,0.01968564,93503.0,93502.0,0.10235]
[1763396867554,0.01968564,93503.0,93502.0,0.10135]
[1763396867711,0.01968564,93503.0,93502.0,0.04066]
[1763396867921,0.01968564,93503.0,93502.0,0.10235]
[1763396868330,0.07863474,93525.0,93502.0,0.10235]
[1763396868508,0.0196698,93524.0,93503.0,0.07094422]
[1763396868703,0.00999999,93550.0,93503.0,0.07094422]
[1763396868704,0.0196698,93523.0,93503.0,0.07094422]
[1763396868903,0.0196698,93522.0,93503.0,0.07094422]
[1763396869108,0.0196698,93521.0,93506.0,0.10416178]
[1763396869355,0.02953,93533.0,93520.0,0.01568]
[1763396869549,0.01967732,93532.0,93521.0,0.10416178]
[1763396869692,0.01967732,93531.0,93520.0,0.04845]
[1763396869891,0.01967732,93530.0,93520.0,0.04845]
[1763396870119,0.01967732,93529.0,93520.0,0.04845]
[1763396870361,0.01967732,93528.0,93520.0,0.04845]
[1763396870501,0.01967732,93527.0,93520.0,0.04845]
[1763396870718,0.01967732,93526.0,93520.0,0.04845]
[1763396870917,0.01967732,93525.0,93520.0,0.04945]
[1763396871157,0.01967732,93524.0,93520.0,0.04945]
[1763396871369,0.06002,93553.0,93520.0,0.04945]
[1763396871370,0.01967732,93523.0,93521.0,0.10416178]
[1763396871533,0.11054827,93554.0,93522.0,0.01526118]
[1763396871735,0.0196948,93553.0,93522.0,0.05592118]
[1763396871944,0.0196948,93552.0,93522.0,0.10437118]
[1763396872150,0.0196948,93551.0,93523.0,0.10416178]
[1763396872352,0.0196948,93550.0,93523.0,0.15261178]
[1763396872569,0.17056827,93554.0,93523.0,0.15261178]
[1763396872570,0.0196948,93549.0,93530.0,0.98458316]
[1763396872773,0.0196948,93548.0,93528.0,0.04845]
[1763396872983,0.0196948,93547.0,93528.0,0.04845]
[1763396873180,0.0196948,93546.0,93528.0,0.04845]
[1763396873390,0.02953,93559.0,93545.0,0.01568]
[1763396873589,0.01969716,93558.0,93545.0,0.01568]
[1763396873770,0.01969716,93557.0,93545.0,0.01568]
[1763396874138,0.01969716,93556.0,93545.0,0.01568]
[1763396874307,0.01969716,93555.0,93545.0,0.01568]
[1763396874539,0.00044134,93558.0,93532.0,0.01568]
[1763396874540,0.04047,93546.0,93532.0,0.01568]
[1763396874692,0.01969716,93545.0,93532.0,0.01568]
[1763396874893,0.01969716,93544.0,93533.0,0.006513]
[1763396875064,0.01969716,93543.0,93533.0,0.006513]
[1763396875272,0.01969716,93542.0,93534.0,0.04341874]
[1763396875477,0.00044134,93558.0,93541.0,0.10416178]
[1763396875675,0.00044134,93558.0,93557.0,0.01639]
[1763396875917,0.00044134,93558.0,93541.0,0.14482178]
[1763396876234,0.00044134,93558.0,93542.0,0.01548218]
[1763396876235,0.01969318,93557.0,93542.0,0.01548218]
[1763396876465,0.01969318,93556.0,93542.0,0.01548218]
[1763396876659,0.01969318,93555.0,93542.0,0.01548218]
[1763396876873,0.02953,93543.0,93541.0,0.001]
[1763396877067,0.01968886,93542.0,93520.0,0.98458316]
[1763396877343,0.01968886,93541.0,93531.0,0.10416178]
[1763396877545,0.01968886,93540.0,93532.0,0.01041618]
[1763396877705,0.01968886,93539.0,93521.0,0.10416178]
[1763396877907,0.01968886,93538.0,93521.0,0.10416178]
[1763396878110,0.01968886,93537.0,93521.0,0.10416178]
[1763396878316,0.01968886,93536.0,93521.0,0.10416178]
[1763396878524,0.02953,93548.0,93522.0,0.1129]
[1763396878723,0.01968593,93547.0,93523.0,0.10366938]
[1763396879081,0.01968593,93546.0,93542.0,0.001]
[1763396879316,0.01968593,93545.0,93521.0,0.10416178]
[1763396879516,0.01968593,93544.0,93521.0,0.10516178]
[1763396879695,0.01968593,93543.0,93521.0,0.10516178]
[1763396879895,0.01968593,93542.0,93522.0,0.10366938]
[1763396880122,0.01968593,93541.0,93523.0,0.001]
[1763396880323,0.01968593,93540.0,93523.0,0.001]
[1763396880518,0.01968593,93539.0,93522.0,0.10366938]
[1763396880719,0.00552084,93538.0,93522.0,0.10366938]
[1763396880925,0.02953,93548.0,93523.0,0.10366938]
[1763396881449,0.02953,93548.0,93521.0,0.001]
[1763396881450,0.05619,93524.0,93521.0,0.001]
[1763396881655,0.00999999,93510.0,93500.0,6e-05]
[1763396881784,0.00999999,93500.0,93450.0,0.10416178]
[1763396881986,0.00999999,93480.0,93451.0,0.10366938]
[1763396882192,0.00984578,93479.0,93451.0,0.10366938]
[1763396882379,0.07252,93479.0,93451.0,0.10366938]
[1763396882578,0.07252,93479.0,93452.0,0.10366938]
[1763396882579,0.00984006,93478.0,93452.0,0.10366938]
[1763396882781,0.00984006,93477.0,93452.0,0.10366938]
[1763396882996,0.00984006,93476.0,93452.0,0.10366938]
[1763396883199,0.00984093,93475.0,93452.0,0.10366938]
[1763396883410,0.00999999,93470.0,93452.0,0.10366938]
[1763396883633,0.00146777,93469.0,93453.0,0.0766589]
[1763396883837,0.04853263,93468.0,93451.0,0.0001322]
[1763396884453,0.07917909,93476.0,93449.0,13.81679565]
[1763396884631,0.03776842,93488.0,93452.0,0.00982]
[1763396884858,0.02342,93489.0,93460.0,0.98458316]
[1763396885199,0.07865698,93489.0,93470.0,0.98458316]
[1763396885389,0.03414179,93491.0,93470.0,0.98458316]
[1763396885591,0.11486126,93491.0,93470.0,0.98458316]
[1763396885812,0.05670876,93498.0,93470.0,0.98458316]
[1763396885963,0.02342,93505.0,93480.0,1.08874494]
[1763396886130,0.0491,93517.0,93481.0,0.10366938]
[1763396886131,0.07833082,93514.0,93481.0,0.10366938]
[1763396886331,0.0491,93523.0,93500.0,0.98458316]
[1763396886576,0.00999999,93520.0,93490.0,0.98458316]
[1763396886806,0.0491,93517.0,93481.0,0.10366938]
[1763396887170,0.0491,93517.0,93482.0,0.10416178]
[1763396887171,0.00999999,93510.0,93482.0,0.10416178]
[1763396887375,0.0001323,93517.0,93500.0,0.98458316]
[1763396888056,0.0001323,93517.0,93501.0,0.00982]
[1763396888412,0.0001323,93517.0,93516.0,0.11398178]
[1763396888610,0.0001323,93517.0,93516.0,0.12537996]
[1763396888989,0.0001323,93517.0,93516.0,0.01139818]
[1763396889194,0.0001323,93517.0,93500.0,0.98558316]
[1763396889428,0.0001323,93517.0,93499.0,0.10416178]
[1763396889635,0.0001323,93517.0,93490.0,0.98458316]
[1763396889828,0.0001323,93517.0,93516.0,0.001]
[1763396890040,0.0001323,93517.0,93480.0,0.98458316]
[1763396890206,0.0492323,93517.0,93483.0,0.10366938]
[1763396890425,0.0492323,93517.0,93490.0,0.98458316]
[1763396890630,0.0492323,93517.0,93483.0,0.10366938]
[1763396890811,0.0492323,93517.0,93470.0,0.98458316]
[1763396891271,0.13024249,93517.0,93480.0,0.10416178]
[1763396891502,30.04797758,93517.0,93480.0,1.08874494]
[1763396891708,30.0,93517.0,93480.0,1.08874494]
[1763396891918,0.04341874,93516.0,93500.0,0.001]
[1763396892132,0.01999998,93510.0,93500.0,0.001]
[1763396892335,0.03277,93501.0,93465.0,0.10416178]
[1763396892542,0.00999999,93500.0,93466.0,0.10416178]
[1763396892690,0.02964892,93500.0,93467.0,0.11457796]
[1763396892889,0.01964893,93499.0,93467.0,0.11457796]
[1763396893070,0.01964893,93498.0,93467.0,0.01041618]
[1763396893282,0.00999999,93500.0,93468.0,0.10416178]
[1763396893283,0.01964893,93497.0,93468.0,0.10416178]
[1763396893483,0.01964893,93496.0,93470.0,0.98458316]
[1763396893675,0.01964893,93495.0,93462.0,0.01095]
[1763396893901,0.01964893,93494.0,93470.0,0.10416178]
[1763396894102,0.01964893,93493.0,93470.0,0.10416178]
[1763396894370,0.01964893,93492.0,93471.0,0.01041618]
[1763396894572,0.01964893,93491.0,93471.0,0.01041618]
[1763396894760,0.01964893,93490.0,93471.0,0.01041618]
[1763396894976,0.01964893,93489.0,93471.0,0.01041618]
[1763396895183,0.01964893,93488.0,93471.0,0.01041618]
[1763396895327,0.01964893,93487.0,93472.0,0.20475671]
[1763396895527,0.00999999,93520.0,93472.0,0.20475671]
[1763396895528,30.03539667,93517.0,93472.0,0.15375178]
[1763396895855,0.02153,93499.0,93473.0,0.04959]
[1763396896060,0.02946844,93498.0,93473.0,0.04959]
[1763396896280,0.01964559,93497.0,93480.0,0.98458316]
[1763396896609,0.01964559,93496.0,93480.0,0.98458316]
[1763396896818,30.03639667,93517.0,93481.0,0.17145832]
[1763396896981,0.02947591,93516.0,93487.0,0.10416178]
[1763396897205,0.02947591,93515.0,93490.0,0.98458316]
[1763396897350,30.03539667,93517.0,93490.0,0.98458316]
[1763396897351,0.02947591,93514.0,93490.0,0.98458316]
[1763396897563,0.01965053,93513.0,93491.0,0.15146938]
[1763396897800,0.01965053,93512.0,93492.0,0.0478]
[1763396897995,0.01965053,93511.0,93502.0,0.10416178]
[1763396898212,29.95653841,93517.0,93492.0,0.0478]
[1763396898410,0.01965063,93516.0,93502.0,0.10416178]
[1763396898656,29.95653841,93517.0,93516.0,0.03351]
[1763396899017,29.95653841,93517.0,93503.0,0.0478]
[1763396899218,29.95653841,93517.0,93504.0,0.10416178]
[1763396899432,29.95653841,93517.0,93516.0,0.03351]
[1763396900087,29.95653841,93517.0,93516.0,0.08131]
[1763396900259,29.95653841,93517.0,93516.0,0.089441]
[1763396900922,29.95653841,93517.0,93515.0,0.00643]
[1763396901119,29.95653841,93517.0,93516.0,0.08131]
[1763396901994,29.95653841,93517.0,93516.0,0.08231]
[1763396902188,29.95653841,93517.0,93516.0,0.001]
[1763396902324,29.95653841,93517.0,93507.0,0.01625]
[1763396902527,0.01964061,93516.0,93507.0,0.01625]
[1763396902753,0.01964061,93515.0,93507.0,0.01625]
[1763396902952,0.01964061,93514.0,93507.0,0.01625]
[1763396903152,0.01964061,93513.0,93507.0,0.01625]
[1763396903358,0.01964061,93512.0,93508.0,0.10416178]
[1763396903528,29.95653841,93517.0,93509.0,0.01205441]
[1763396903729,29.95653841,93517.0,93511.0,0.03351]
[1763396903730,0.01963588,93516.0,93511.0,0.03351]
[1763396903913,29.95653841,93517.0,93509.0,0.01205441]
[1763396904118,0.01963364,93516.0,93509.0,0.01205441]
[1763396904406,29.95653841,93517.0,93510.0,0.15196178]
[1763396904588,29.95653841,93517.0,93516.0,0.03351]
[1763396904964,29.95653841,93517.0,93511.0,0.06582662]
[1763396905265,29.95653841,93517.0,93516.0,0.03351]
[1763396905658,29.95653841,93517.0,93516.0,0.08131]
[1763396906054,29.95653841,93517.0,93516.0,0.08231]
[1763396906259,29.95653841,93517.0,93516.0,0.1357624]
[1763396906479,26.36826027,93517.0,93516.0,0.23862874]
[1763396906689,25.38516293,93517.0,93516.0,0.23762874]
[1763396907116,25.35780844,93517.0,93516.0,0.23862874]
[1763396907354,24.92953047,93517.0,93516.0,0.23862874]
[1763396907990,24.43711142,93517.0,93516.0,0.26161193]
[1763396908196,24.39512751,93517.0,93516.0,0.26161193]
[1763396908314,24.39512751,93517.0,93516.0,0.26061193]
[1763396908524,23.88756309,93517.0,93516.0,0.26061193]
[1763396908739,23.88756309,93517.0,93516.0,0.26261193]
[1763396908740,23.87956428,93517.0,93516.0,0.26261193]
[1763396908957,23.87956428,93517.0,93516.0,0.26061193]
[1763396909386,23.83470377,93517.0,93516.0,0.26361193]
[1763396909641,23.83470377,93517.0,93516.0,0.26061193]
[1763396909871,23.83470377,93517.0,93516.0,0.26361193]
[1763396910972,22.72749113,93517.0,93516.0,2.26361193]
[1763396911195,22.63699821,93517.0,93516.0,2.58661193]
[1763396911396,21.70621453,93517.0,93516.0,2.58661193]
[1763396911596,21.55382005,93517.0,93516.0,2.58661193]
[1763396912040,21.11418943,93517.0,93516.0,2.58661193]
[1763396912244,21.11418943,93517.0,93516.0,2.26061193]
[1763396912621,21.11418943,93517.0,93516.0,2.58361193]
[1763396912845,20.88052363,93517.0,93516.0,2.58361193]
[1763396913053,20.88052363,93517.0,93516.0,2.58761193]
[1763396913054,20.44089301,93517.0,93516.0,2.58761193]